fUST/lending_fUST_20240208
["ID","MTS","AMOUNT","RATE_DAILY","PERIOD"]
[313471883,1707381038884,-246.11362576,0.00019028,2]
[313471884,1707381038894,-185.93740982,0.00019028,2]
[313471885,1707381038903,-1675.6211017,0.0001903,2]
[313471886,1707381038913,-169.10068,0.00019178,2]
[313471887,1707381038922,-169.347761,0.00019178,2]
[313471888,1707381038932,-155.65048837,0.0001922,2]
[313471889,1707381038941,-850.11405344,0.00019999,2]
[313471890,1707381038951,-231.17246354,0.0002,2]
[313471891,1707381038960,-155.11323266,0.0002,2]
[313471892,1707381038970,-155.07288426,0.0002,2]
[313471893,1707381038980,-1201.92575629,0.0002,2]
[313471895,1707381038990,-680.94052688,0.0002,2]
[313471896,1707381039000,-242.87514693,0.00020089,2]
[313471898,1707381039009,-280.0,0.0002075,2]
[313471899,1707381039018,-500.0,0.00020822,2]
[313471900,1707381039027,-500.0,0.00020822,2]
[313471901,1707381039037,-451.73424992,0.00020822,2]
[313471902,1707381039047,-500.0,0.00020822,2]
[313471903,1707381039056,-500.0,0.00020822,2]
[313471904,1707381039066,-500.0,0.00020822,2]
[313471905,1707381039075,-500.0,0.00020822,2]
[313471906,1707381039084,-500.0,0.00020822,2]
[313471907,1707381039093,-500.0,0.00020822,2]
[313471908,1707381039102,-500.0,0.00020822,2]
[313471909,1707381039111,-500.0,0.00020822,2]
[313471910,1707381039121,-500.0,0.00020822,2]
[313471911,1707381039131,-500.0,0.00020822,2]
[313471912,1707381039219,-500.0,0.00020822,2]
[313471913,1707381039228,-500.0,0.00020822,2]
[313471914,1707381039239,-500.0,0.00020822,2]
[313471915,1707381039248,-500.0,0.00020822,2]
[313471916,1707381039257,-500.0,0.00020822,2]
[313471917,1707381039268,-500.0,0.00020822,2]
[313471918,1707381039278,-470.1758452,0.00020822,2]
[313471919,1707381039288,-500.0,0.00020822,2]
[313471920,1707381039298,-500.0,0.00020822,2]
[313471921,1707381039308,-500.0,0.00020822,2]
[313471922,1707381039321,-500.0,0.00020822,2]
[313471923,1707381039330,-638.77903675,0.00020822,2]
[313471924,1707381039343,-340.98837403,0.00020822,2]
[313471925,1707381039354,-500.0,0.00020822,2]
[313471926,1707381039364,-500.0,0.00020822,2]
[313471927,1707381039374,-500.0,0.00020822,2]
[313471928,1707381039384,-500.0,0.00020822,2]
[313471929,1707381039396,-500.0,0.00020822,2]
[313471930,1707381039406,-500.0,0.00020822,2]
[313471931,1707381039416,-500.0,0.00020822,2]
[313471932,1707381039427,-500.0,0.00020822,2]
[313471933,1707381039437,-500.0,0.00020822,2]
[313471934,1707381039447,-500.0,0.00020822,2]
[313471935,1707381039457,-500.0,0.00020822,2]
[313471936,1707381039467,-500.0,0.00020822,2]
[313471937,1707381039477,-500.0,0.00020822,2]
[313471938,1707381039487,-500.0,0.00020822,2]
[313471939,1707381039498,-500.0,0.00020822,2]
[313471940,1707381039508,-500.0,0.00020822,2]
[313471941,1707381039518,-500.0,0.00020822,2]
[313471942,1707381039528,-500.0,0.00020822,2]
[313471943,1707381039537,-500.0,0.00020822,2]
[313471944,1707381039546,-500.0,0.00020822,2]
[313471945,1707381039556,-500.0,0.00020822,2]
[313471946,1707381039568,-478.13592466,0.00020822,2]
[313471947,1707381039578,-500.0,0.00020822,2]
[313471948,1707381039589,-344.84801165,0.00020822,2]
[313471949,1707381039601,-500.0,0.00020822,2]
[313471950,1707381039611,-500.0,0.00020822,2]
[313471951,1707381039621,-500.0,0.00020822,2]
[313471952,1707381039632,-500.0,0.00020822,2]
[313471953,1707381039641,-500.0,0.00020822,2]
[313471954,1707381039651,-500.0,0.00020822,2]
[313471955,1707381039660,-500.0,0.00020822,2]
[313471956,1707381039670,-500.0,0.00020822,2]
[313471957,1707381039680,-500.0,0.00020822,2]
[313471958,1707381039690,-500.0,0.00020822,2]
[313471959,1707381039699,-500.0,0.00020822,2]
[313471960,1707381039709,-500.0,0.00020822,2]
[313471961,1707381039719,-500.0,0.00020822,2]
[313471962,1707381039729,-500.0,0.00020822,2]
[313471963,1707381039739,-500.0,0.00020822,2]
[313471964,1707381039748,-500.0,0.00020822,2]
[313471965,1707381039758,-500.0,0.00020822,2]
[313471966,1707381039768,-500.0,0.00020822,2]
[313471967,1707381039778,-500.0,0.00020822,2]
[313471968,1707381039787,-500.0,0.00020822,2]
[313471969,1707381039796,-500.0,0.00020822,2]
[313471970,1707381039805,-166.666666,0.00021918,2]
[313471971,1707381039814,-431.39058791,0.00022,2]
[313471972,1707381039823,-3981.4674439,0.00022,2]
[313471973,1707381039832,-155.9815372,0.00022,2]
[313471974,1707381039842,-326.48350937,0.00022,2]
[313471975,1707381039851,-242.87514693,0.00022128,2]
[313471976,1707381039860,-166.666666,0.00022431,2]
[313471977,1707381039869,-169.29307845,0.000225,2]
[313471978,1707381039879,-391.0,0.00022825,7]
[313471979,1707381039888,-166.666666,0.00022944,2]
[313471980,1707381039897,-9969.58754808,0.00023,2]
[313471981,1707381039906,-1263.33437611,0.00023,2]
[313471982,1707381039915,-166.666666,0.00023456,2]
[313471983,1707381039924,-166.666666,0.00023969,2]
[313471984,1707381039933,-242.87514693,0.00024166,2]
[313471985,1707381039942,-1047.54768529,0.00024215,2]
[313471986,1707381039952,-166.666666,0.00024482,2]
[313471987,1707381039961,-7407.43141525,0.00025,2]
[313471988,1707381039970,-4739.06901527,0.00025,2]
[313471989,1707381039979,-155.07288426,0.00025,2]
[313471990,1707381039989,-242.87514693,0.00026204,2]
[313471991,1707381039998,-630.94359501,0.00026204,2]
[313471992,1707381040007,-5195.639304,0.00026211,2]
[313471993,1707381040016,-5195.639304,0.00026211,2]
[313471994,1707381040025,-500.0,0.00026213,2]
[313471995,1707381040034,-500.0,0.00026213,2]
[313471996,1707381040043,-626.79947259,0.00026213,2]
[313471997,1707381040052,-198.0198743,0.00026213,2]
[313471998,1707381040061,-500.0,0.00026213,2]
[313471999,1707381040070,-500.0,0.00026213,2]
[313472000,1707381040079,-500.0,0.00026213,2]
[313472001,1707381040087,-254.26704363,0.00026213,2]
[313472002,1707381040096,-500.0,0.00026213,2]
[313472003,1707381040104,-500.0,0.00026213,2]
[313472004,1707381040113,-500.0,0.00026213,2]
[313472005,1707381040122,-398.88215745,0.00026213,2]
[313472006,1707381040131,-500.0,0.00026213,2]
[313472007,1707381040139,-500.0,0.00026213,2]
[313472008,1707381040148,-338.79244311,0.00026213,2]
[313472009,1707381040156,-317.3156001,0.00026213,2]
[313472010,1707381040165,-500.0,0.00026213,2]
[313472011,1707381040174,-500.0,0.00026213,2]
[313472012,1707381040183,-500.0,0.00026213,2]
[313472013,1707381040191,-500.0,0.00026213,2]
[313472014,1707381040200,-500.0,0.00026213,2]
[313472015,1707381040209,-500.0,0.00026213,2]
[313472016,1707381040218,-500.0,0.00026213,2]
[313472017,1707381040227,-500.0,0.00026213,2]
[313472018,1707381040236,-500.0,0.00026213,2]
[313472019,1707381040245,-500.0,0.00026213,2]
[313472020,1707381040254,-500.0,0.00026213,2]
[313472021,1707381040262,-500.0,0.00026213,2]
[313472022,1707381040271,-350.0,0.00026213,2]
[313472023,1707381040280,-500.0,0.00026213,2]
[313472024,1707381040288,-634.38586104,0.00026213,2]
[313472025,1707381040297,-500.0,0.00026213,2]
[313472026,1707381040306,-340.682385,0.00026213,2]
[313472027,1707381040315,-500.0,0.00026213,2]
[313472028,1707381040328,-500.0,0.00026213,2]
[313472029,1707381040338,-500.0,0.00026213,2]
[313472030,1707381040347,-500.0,0.00026213,2]
[313472031,1707381040356,-500.0,0.00026213,2]
[313472032,1707381040365,-500.0,0.00026213,2]
[313472033,1707381040374,-500.0,0.00026213,2]
[313472034,1707381040383,-500.0,0.00026213,2]
[313472035,1707381040392,-500.0,0.00026213,2]
[313472036,1707381040401,-500.0,0.00026213,2]
[313472037,1707381040410,-500.0,0.00026213,2]
[313472038,1707381040419,-166873.47673573,0.00026214,2]
[313472121,1707381041991,-500.0,0.00020822,2]
[313472123,1707381042000,-500.0,0.00020822,2]
[313472125,1707381042009,-3464.3,0.00026214,2]
[313472127,1707381042020,-4081.45258001,0.00026214,2]
[313472183,1707381043607,-500.0,0.00026213,2]
[313472185,1707381043615,-500.0,0.00026213,2]
[313472187,1707381043625,-196.04090975,0.00026214,2]
[313472190,1707381043637,-2949.52,0.00026214,2]
[313472192,1707381043648,-877.56756296,0.00026214,2]
[313472194,1707381043659,-15066.89322,0.00026214,2]
[313472402,1707382238753,-2007.78882142,0.00018044,2]
[313472412,1707382239047,-1572.26209662,0.00018044,2]
[313472413,1707382239059,-176.46972877,0.00018044,2]
[313472415,1707382239068,-309.79228275,0.00018045,2]
[313472417,1707382239079,-520.96707045,0.00018045,2]
[313472418,1707382239088,-1418.0806765,0.00018562,2]
[313472517,1707382241938,-257.5404252,0.00018562,2]
[313472518,1707382241948,-246.11362576,0.00018562,2]
[313472519,1707382241957,-169.22422,0.00019178,2]
[313472520,1707382241965,-850.11405344,0.00019608,2]
[313472521,1707382241974,-185.93740982,0.00019715,2]
[313472522,1707382241983,-820.06614585,0.00019999,2]
[313472523,1707382241992,-155.11323266,0.0002,2]
[313472524,1707382242000,-680.94052688,0.0002,2]
[313472525,1707382242009,-155.08995217,0.0002,2]
[313472526,1707382242018,-1201.92575629,0.00020089,2]
[313472527,1707382242027,-124.01023341,0.0002009,2]
[313472528,1707382242039,-75.98976659,0.0002009,2]
[313472529,1707382242048,-184.003295,0.00020537,2]
[313472530,1707382242057,-11184.40800703,0.00020702,2]
[313473063,1707383441040,-1330.81742537,0.000189,2]
[313473064,1707383441050,-169.347761,0.00019413,2]
[313473066,1707383441059,-234.6489899,0.00019589,2]
[313473184,1707383442896,-261.88794378,0.00018899,2]
[313473186,1707383442906,-7676.55105985,0.00019589,2]
[313473189,1707383442918,-7551.80044201,0.00019589,2]
[313473941,1707384434303,178.8,0.00029,30]
[313474024,1707384632062,-718.16329781,0.00018785,2]
[313474026,1707384632072,-569.80011905,0.00018785,2]
[313474039,1707384638620,-1353.78393239,0.00018785,2]
[313474040,1707384638632,-1168.83394899,0.00018785,2]
[313474041,1707384638725,-1470.65844394,0.00018785,2]
[313474042,1707384638737,-1291.03443255,0.00018785,2]
[313474043,1707384638746,-280.88600558,0.00018786,2]
[313474190,1707384646125,-24619.11399442,0.00018786,2]
[313474192,1707384646136,-185.93740982,0.00018799,2]
[313474194,1707384646145,-887.21161691,0.000189,2]
[313474196,1707384646154,-169.22422,0.00019178,2]
[313474198,1707384646163,-500.0,0.00019589,2]
[313474200,1707384646172,-198.5979432,0.00019776,2]
[313474202,1707384646181,-680.94052688,0.00020734,2]
[313474204,1707384646189,-475.71,0.00020735,2]
[313474206,1707384646198,-156.93164239,0.00020819,2]
[313474208,1707384646207,-564.26107295,0.0002082,2]
[313474210,1707384646216,-1607.87518843,0.0002082,2]
[313474212,1707384646225,-157.94654301,0.00020821,2]
[313474214,1707384646234,-200.0,0.00020924,2]
[313474216,1707384646243,-13882.36574231,0.00021,2]
[313474218,1707384646253,-9302.99266813,0.00021,2]
[313474220,1707384646261,-166.666666,0.00021918,2]
[313474221,1707384646270,-155.9815372,0.00022,2]
[313474223,1707384646279,-3981.4674439,0.00022,2]
[313474225,1707384646288,-427.31508471,0.00022,2]
[313474227,1707384646297,-166.666666,0.00022431,2]
[313474229,1707384646306,-169.29307845,0.000225,2]
[313474231,1707384646315,-166.666666,0.00022944,2]
[313474233,1707384646324,-7523.24,0.0002298,3]
[313474235,1707384646334,-8002.77,0.0002299,3]
[313474237,1707384646344,-155.65048837,0.00022999,2]
[313474239,1707384646353,-9969.58754808,0.00023,2]
[313474241,1707384646362,-1263.33437611,0.00023015,2]
[313474243,1707384646371,-280.0,0.00023016,7]
[313474245,1707384646381,-166.666666,0.00023456,2]
[313474247,1707384646389,-863.18368222,0.00023826,2]
[313474249,1707384646398,-887.21161691,0.000239,2]
[313474251,1707384646407,-166.666666,0.00023969,2]
[313474253,1707384646417,-300.0,0.00024,2]
[313474255,1707384646426,-297.1171087,0.00024384,2]
[313474257,1707384646436,-166.666666,0.00024482,2]
[313474259,1707384646445,-1360.9868312,0.00024999,2]
[313474271,1707384646545,-237.64389938,0.00025,2]
[313474273,1707384646555,-4739.06901527,0.00025,2]
[313474275,1707384646564,-7407.43141525,0.00025,2]
[313474277,1707384646573,-632.15918411,0.00025017,2]
[313474279,1707384646583,-257.81308778,0.00025848,2]
[313474281,1707384646592,-626.13015893,0.00025948,2]
[313474283,1707384646601,-633.54907486,0.00025948,2]
[313474285,1707384646610,-17783.37507795,0.0002595,2]
[313474287,1707384646620,-257.81308778,0.00025965,2]
[313474289,1707384646629,-500.2877227,0.00026,3]
[313474291,1707384646638,-242.07646652,0.00026,2]
[313474293,1707384646647,-630.94359501,0.00026002,2]
[313474295,1707384646658,-263.81275062,0.00026006,2]
[313474297,1707384646666,-81352.02243029,0.00026007,2]
[313474299,1707384646675,-151.0,0.00026007,2]
[313474301,1707384646684,-151.0,0.00026007,2]
[313474303,1707384646694,-151.0,0.00026007,2]
[313474305,1707384646702,-231.263188,0.00026007,2]
[313474307,1707384646711,-270.345041,0.00026007,2]
[313474309,1707384646720,-270.345041,0.00026007,2]
[313474311,1707384646730,-257.81308778,0.00026082,2]
[313474313,1707384646739,-500.0,0.00026097,2]
[313474314,1707384646749,-500.0,0.00026097,2]
[313474316,1707384646758,-500.0,0.00026097,2]
[313474318,1707384646767,-500.0,0.00026097,2]
[313474320,1707384646777,-500.0,0.00026097,2]
[313474322,1707384646786,-541.06540686,0.00026097,2]
[313474324,1707384646795,-500.0,0.00026097,2]
[313474326,1707384646805,-500.0,0.00026097,2]
[313474328,1707384646814,-500.0,0.00026097,2]
[313474330,1707384646823,-500.0,0.00026097,2]
[313474332,1707384646832,-500.0,0.00026097,2]
[313474334,1707384646841,-541.06540686,0.00026097,2]
[313474336,1707384646850,-500.0,0.00026097,2]
[313474338,1707384646859,-500.0,0.00026097,2]
[313474340,1707384646868,-500.0,0.00026097,2]
[313474342,1707384646878,-500.0,0.00026097,2]
[313474344,1707384646887,-500.0,0.00026097,2]
[313474346,1707384646896,-541.06540686,0.00026097,2]
[313474348,1707384646906,-311.30364246,0.00026097,2]
[313474351,1707384646919,-188.69635754,0.00026097,2]
[313474353,1707384646928,-500.0,0.00026097,2]
[313474354,1707384646937,-20.7647039,0.00026097,2]
[313475111,1707385523728,-865.52608243,0.00042308,120]
[313475112,1707385523750,-1694.05952433,0.00042308,120]
[313475113,1707385523773,-1000.0,0.00042308,120]
[313475114,1707385523795,-263.92988769,0.00042308,120]
[313475115,1707385523818,-1000.0,0.00042308,60]
[313475116,1707385523840,-4000.0,0.00042308,30]
[313475117,1707385523863,-4000.0,0.00042308,60]
[313475118,1707385523886,-7370.0,0.00042308,90]
[313475119,1707385523908,-6000.0,0.00042308,30]
[313475120,1707385523930,-9370.0,0.00042308,60]
[313475180,1707385838371,-1018.41805308,0.00023906,2]
[313475181,1707385838380,-161.52708074,0.00023906,2]
[313475182,1707385838390,-220.28225411,0.00023907,2]
[313475183,1707385838401,-75.45495153,0.00023907,2]
[313475184,1707385838410,-944.91753237,0.00023962,2]
[313475185,1707385838422,-1092.38594637,0.00023962,2]
[313475205,1707385841496,-509.25612575,0.00023962,2]
[313475206,1707385841552,-2781.61392085,0.00023962,2]
[313475251,1707385845025,-921.79253314,0.00023962,2]
[313476605,1707386348674,1640969.97524299,0.00042308,30]
[313476606,1707386404656,4000.0,0.00042313,30]
[313476607,1707386405150,6759.0,0.00042313,60]
[313476608,1707386405444,10759.0,0.00042313,30]
[313476609,1707386620734,8000.0,0.00042313,30]
[313476610,1707386656944,500.0,0.00042313,120]
[313476611,1707386664566,8000.0,0.00042313,30]
[313476612,1707386700665,10000.0,0.00042314,30]
[313476613,1707386737044,10000.0,0.00042314,30]
[313476614,1707386754968,10000.0,0.00042314,30]
[313476615,1707386780053,4211.0,0.00042314,30]
[313476687,1707387038634,-352.27111843,0.00019719,2]
[313476689,1707387038643,-214.08706983,0.0001972,2]
[313476691,1707387038653,-1172.61749516,0.0001972,2]
[313476833,1707387043927,-1294.87269158,0.0001972,2]
[313476836,1707387043941,-718.16329781,0.00019721,2]
[313476838,1707387043955,-155.09150399,0.00019722,3]
[313476840,1707387043967,-13162.59126005,0.00020913,2]
[313476843,1707387043985,-11737.40873995,0.00020913,2]
[313476845,1707387043997,-3329.48448005,0.00021903,3]
[313476946,1707387213571,455.69259765,0.00042314,120]
[313476947,1707387484816,686.6936144,0.00019494,2]
[313476948,1707387500865,155.108576,0.00019494,2]
[313476949,1707387504450,200.0,0.00019494,2]
[313476950,1707387505907,622.58144826,0.00019494,2]
[313476951,1707387508843,23335.61636134,0.00019494,2]
[313476952,1707387550863,6050.0,0.00042383,30]
[313476953,1707387561295,250.0,0.00018482,2]
[313476954,1707387618463,622.58144826,0.00018482,2]
[313476955,1707387621733,344.08967576,0.00018482,2]
[313476956,1707387626212,10323.00753799,0.00018482,2]
[313476957,1707387634452,622.58144826,0.00018482,2]
[313476958,1707387639611,344.08967576,0.00018482,2]
[313476959,1707387644247,3054.7540617,0.00018482,2]
[313476960,1707387650421,622.58144826,0.00018482,2]
[313476961,1707387659612,203.6749545,0.00018482,2]
[313476962,1707387670428,237.30269427,0.00018482,2]
[313476963,1707387686575,1035.946631,0.00018437,2]
[313476967,1707387826665,665.6173536,0.00018378,2]
[313476984,1707387885109,2427.2228053,0.00018367,2]
[313476987,1707387912518,813.5683848,0.00018361,2]
[313476989,1707387984153,3432.98188054,0.00018358,2]
[313476990,1707387984189,25000.0,0.00018358,2]
[313476991,1707387984220,2157.32225126,0.00018358,2]
[313476992,1707387989522,22842.67774874,0.00018478,2]
[313476993,1707387989550,2057.32225126,0.00018478,2]
[313477016,1707388184305,10323.00753799,0.00018478,2]
[313477019,1707388185997,517.973315,0.00018464,2]
[313477020,1707388200308,10323.00753799,0.00018478,2]
[313477022,1707388220332,1778.68935776,0.00018478,2]
[313477047,1707388238820,-199.77831197,0.00018476,2]
[313477048,1707388238829,-1133.10620746,0.00018477,2]
[313477079,1707388242344,-895.67746829,0.00018477,2]
[313477093,1707388243288,-793.83359516,0.00018477,2]
[313477095,1707388243296,-352.27111843,0.00018477,2]
[313477096,1707388243304,-1018.41805308,0.00018477,2]
[313477098,1707388243312,-854.55617039,0.00018478,2]
[313477129,1707388243796,-396.85223137,0.00018478,2]
[313477282,1707388248909,-1015.51210787,0.00018476,2]
[313477283,1707388248921,-8377.46492902,0.00018476,2]
[313477284,1707388248931,-609.78077647,0.00018476,2]
[313477285,1707388248940,-7292.90977847,0.00018478,2]
[313477286,1707388248949,-557.19545546,0.00019309,2]
[313477287,1707388248958,-2467.49018674,0.00019309,2]
[313477288,1707388248967,-1961.40823934,0.00019309,2]
[313477289,1707388248976,-181.54986875,0.0001931,2]
[313477290,1707388248985,-1297.44316792,0.0001931,2]
[313477291,1707388248994,-214.08706983,0.00019311,2]
[313477292,1707388249005,-175.72920133,0.00019312,2]
[313477293,1707388249014,-268.29693554,0.00019349,2]
[313477294,1707388249023,-648.579973,0.00019449,2]
[313477295,1707388249032,-648.579973,0.00019449,2]
[313477296,1707388249041,-151.0,0.00019449,2]
[313477297,1707388249050,-151.0,0.00019449,2]
[313477298,1707388249059,-151.0,0.00019449,2]
[313477299,1707388249068,-832.37464725,0.00019494,2]
[313477300,1707388249077,-235.55549047,0.00019494,2]
[313477301,1707388249086,-200.0,0.00019494,2]
[313477302,1707388249095,-1114.9970642,0.000195,2]
[313477303,1707388249105,-2145.753377,0.0001974,2]
[313477304,1707388249114,-1674.27286621,0.0001974,2]
[313477324,1707388640223,258.986657,0.00017674,2]
[313477325,1707388717363,10323.00753799,0.00017674,2]
[313477326,1707388731379,8469.00667245,0.00017674,2]
[313477344,1707388911400,5948.99913256,0.00017717,2]
[313477345,1707388911439,6439.91962364,0.00017717,2]
[313477346,1707389105163,258.986657,0.00017144,2]
[313477347,1707389413653,12918.8461039,0.00017575,2]
[313477348,1707389428036,1363.10048979,0.00017575,5]
[313477377,1707389431801,-285.18397126,0.00018017,2]
[313477446,1707389437958,-67.08714717,0.00018017,2]
[313477447,1707389437968,-3526.20197843,0.00018017,2]
[313477448,1707389437980,-1250.11279398,0.00018017,2]
[313477543,1707389441108,-779.52614367,0.00018017,2]
[313477544,1707389441120,-260.659322,0.00018017,2]
[313477646,1707389634760,3000.0,0.00042384,30]
[313477647,1707389661064,155.01394926,0.000176,2]
[313477648,1707389667616,2500.0,0.00042384,31]
[313477659,1707389903030,-1018.41805308,0.00018001,2]
[313477660,1707389903052,-243.85623125,0.00018002,2]
[313477661,1707389903076,-9392.97703689,0.00018002,2]
[313477662,1707389903098,-1230.079678,0.00018007,2]
[313477663,1707389903121,-6806.55216034,0.00018007,2]
[313477664,1707389903143,-175.72920133,0.00018477,2]
[313477665,1707389903165,-250.2552584,0.00018794,2]
[313477666,1707389903186,-2110.10399171,0.00018892,2]
[313477667,1707389903207,-151.0,0.00018894,2]
[313477668,1707389903229,-151.0,0.00018894,2]
[313477669,1707389903251,-1954.752064,0.00018894,2]
[313477670,1707389903275,-1954.752064,0.00018894,2]
[313477671,1707389903297,-1954.752064,0.00018894,2]
[313477672,1707389903318,-1954.752064,0.00018894,2]
[313477673,1707389903340,-1954.752064,0.00018894,2]
[313477674,1707389903362,-1954.752064,0.00018894,2]
[313477675,1707389903384,-1954.752064,0.00018894,2]
[313477676,1707389903407,-1954.752064,0.00018894,2]
[313477677,1707389903431,-1954.752064,0.00018894,2]
[313477678,1707389903454,-1954.752064,0.00018894,2]
[313477679,1707389903476,-583.721976,0.00018894,2]
[313477680,1707389903497,-583.721976,0.00018894,2]
[313477681,1707389903520,-583.721976,0.00018894,2]
[313477682,1707389903544,-583.721976,0.00018894,2]
[313477683,1707389903569,-583.721976,0.00018894,2]
[313477684,1707389903591,-583.721976,0.00018894,2]
[313477685,1707389903612,-583.721976,0.00018894,2]
[313477686,1707389903634,-583.721976,0.00018894,2]
[313477687,1707389903655,-583.721976,0.00018894,2]
[313477688,1707389903676,-583.721976,0.00018894,2]
[313477689,1707389903697,-151.0,0.00018894,2]
[313477690,1707389903719,-151.0,0.00018894,2]
[313477691,1707389903740,-151.0,0.00018894,2]
[313477692,1707389903761,-151.0,0.00018894,2]
[313477693,1707389903782,-151.0,0.00018894,2]
[313477694,1707389903804,-189.210203,0.00018894,2]
[313477695,1707389903829,-155.887864,0.00018894,2]
[313477696,1707389903853,-151.0,0.00018894,2]
[313477697,1707389903874,-151.0,0.00018894,2]
[313477698,1707389903895,-151.0,0.00018894,2]
[313477699,1707389903916,-151.0,0.00018894,2]
[313477700,1707389903939,-151.0,0.00018894,2]
[313477701,1707389903960,-151.0,0.00018894,2]
[313477702,1707389903981,-151.0,0.00018894,2]
[313477703,1707389904002,-151.0,0.00018894,2]
[313477704,1707389904024,-5218.289304,0.00018894,2]
[313477705,1707389904047,-5218.289304,0.00018894,2]
[313477706,1707389904068,-5218.289304,0.00018894,2]
[313477707,1707389904092,-5218.289304,0.00018894,2]
[313477708,1707389904115,-5218.289304,0.00018894,2]
[313477709,1707389904138,-5218.289304,0.00018894,2]
[313477710,1707389904159,-5218.289304,0.00018894,2]
[313477711,1707389904182,-5218.289304,0.00018894,2]
[313477712,1707389904203,-5218.289304,0.00018894,2]
[313477713,1707389904225,-5218.289304,0.00018894,2]
[313477714,1707389904252,-5218.289304,0.00018894,2]
[313477715,1707389904274,-5218.289304,0.00018894,2]
[313477716,1707389904295,-5218.289304,0.00018894,2]
[313477717,1707389904317,-5218.289304,0.00018894,2]
[313477718,1707389904338,-5218.289304,0.00018894,2]
[313477719,1707389904359,-5218.289304,0.00018894,2]
[313477720,1707389904381,-5218.289304,0.00018894,2]
[313477721,1707389904403,-5218.289304,0.00018894,2]
[313477722,1707389904428,-5218.289304,0.00018894,2]
[313477723,1707389904448,-5218.289297,0.00018894,2]
[313477724,1707389904471,-243.310536,0.00018894,2]
[313477725,1707389904494,-243.310536,0.00018894,2]
[313477726,1707389904516,-243.310536,0.00018894,2]
[313477727,1707389904537,-243.310536,0.00018894,2]
[313477728,1707389904558,-243.310536,0.00018894,2]
[313477729,1707389904581,-243.310536,0.00018894,2]
[313477730,1707389904601,-243.310536,0.00018894,2]
[313477731,1707389904622,-243.310536,0.00018894,2]
[313477732,1707389904644,-243.310536,0.00018894,2]
[313477733,1707389904665,-243.310536,0.00018894,2]
[313477734,1707389904685,-243.310536,0.00018894,2]
[313477735,1707389904705,-243.310536,0.00018894,2]
[313477736,1707389904727,-243.310536,0.00018894,2]
[313477737,1707389904748,-243.310536,0.00018894,2]
[313477738,1707389904769,-243.310536,0.00018894,2]
[313477739,1707389904790,-243.310536,0.00018894,2]
[313477740,1707389904812,-243.310536,0.00018894,2]
[313477741,1707389904834,-243.310536,0.00018894,2]
[313477742,1707389904863,-243.310536,0.00018894,2]
[313477743,1707389905025,-243.310546,0.00018894,2]
[313477744,1707389905047,-151.0,0.00018894,2]
[313477745,1707389905068,-151.0,0.00018894,2]
[313477746,1707389905090,-151.0,0.00018894,2]
[313477747,1707389905112,-151.0,0.00018894,2]
[313477748,1707389905134,-151.0,0.00018894,2]
[313477749,1707389905160,-278.986258,0.00018894,2]
[313477750,1707389905182,-233.47526807,0.00018898,2]
[313477751,1707389905203,-151.0,0.00018899,2]
[313477752,1707389905224,-151.0,0.00018899,2]
[313477753,1707389905245,-151.0,0.00018899,2]
[313477754,1707389905267,-151.0,0.00018899,2]
[313477755,1707389905288,-151.0,0.00018899,2]
[313477756,1707389905310,-151.0,0.00018899,2]
[313477757,1707389905332,-1954.752064,0.00018899,2]
[313477758,1707389905354,-1954.752064,0.00018899,2]
[313477759,1707389905376,-1954.752064,0.00018899,2]
[313477760,1707389905398,-1954.752064,0.00018899,2]
[313477761,1707389905421,-1954.752064,0.00018899,2]
[313477762,1707389905445,-1954.752064,0.00018899,2]
[313477763,1707389905474,-1954.752064,0.00018899,2]
[313477764,1707389905500,-1954.752064,0.00018899,2]